fUST/lending_fUST_20250531
["ID","MTS","AMOUNT","RATE_DAILY","PERIOD"]
[363341621,1748682648708,-500.0,0.00022,8]
[363341622,1748682648718,-2284.58,0.00022,2]
[363341623,1748682648727,-132976.13,0.00022,7]
[363341624,1748682648738,-2000.0,0.00022,2]
[363341625,1748682648747,-2000.0,0.00022,2]
[363341626,1748682648759,-2000.0,0.00022,2]
[363341627,1748682648768,-206.0,0.00022,2]
[363341628,1748682648777,-4262.0,0.00022,2]
[363341629,1748682648787,-2000.0,0.00022,2]
[363341630,1748682648796,-500.0,0.00022,2]
[363341631,1748682648807,-500.0,0.00022,2]
[363341632,1748682648816,-3335.4749594,0.00022,2]
[363341633,1748682648965,-583.61999993,0.00022,2]
[363341634,1748682648978,-655.28,0.00022,2]
[363341636,1748682823718,161.441727,0.00013699,2]
[363341638,1748683189875,10000.0,0.00021918,60]
[363341639,1748683545135,-5000.0,0.00014954,2]
[363341640,1748683545158,-300.0,0.00015221,2]
[363341641,1748683545180,-10000.0,0.00015222,2]
[363341642,1748683545203,-405.10432001,0.00015411,2]
[363341643,1748683545228,-500.0,0.00015411,2]
[363341644,1748683545251,-500.0,0.00015411,2]
[363341645,1748683545277,-500.0,0.00015411,2]
[363341646,1748683545307,-539.91425897,0.00015411,2]
[363341647,1748683545330,-500.0,0.00015411,2]
[363341648,1748683545353,-8730.05418385,0.00015412,2]
[363341649,1748683628116,-571.33843024,0.00015412,2]
[363341650,1748683640095,-6656.18766882,0.00015412,2]
[363341651,1748683646088,-178.13163574,0.00015412,2]
[363341652,1748683654097,-2636.4119026,0.00015412,2]
[363341657,1748683719793,150.999999,0.0002,120]
[363341658,1748683746125,-1003.64859977,0.00015258,2]
[363341659,1748683746159,-264.89038948,0.00015258,2]
[363341660,1748683754098,-1144.77297132,0.00015412,2]
[363341661,1748683754130,-29.05222253,0.00015412,2]
[363341662,1748683754151,-230.8571669,0.00015643,2]
[363341663,1748683761085,-222.03961084,0.00016,2]
[363341664,1748683761136,-64.26793076,0.00016,2]
[363341688,1748683832415,-151.95110749,0.00016338,2]
[363341689,1748683832426,-226.65713989,0.00016437,2]
[363341690,1748683832437,-430.0,0.00016438,2]
[363341691,1748683832446,-430.0,0.00016438,2]
[363341692,1748683832456,-430.0,0.00016438,2]
[363341693,1748683832465,-430.0,0.00016438,2]
[363341694,1748683832474,-343.19021788,0.00016438,2]
[363341695,1748683832484,-500.0,0.00016438,2]
[363341696,1748683832494,-435.31527319,0.00016438,2]
[363341697,1748683832506,-434.05691854,0.00016438,2]
[363341698,1748683832520,-430.0,0.00016438,2]
[363341699,1748683832530,-432.23658006,0.00016438,2]
[363341700,1748683832540,-368.64500016,0.00016438,2]
[363341701,1748683832549,-430.0,0.00016438,2]
[363341702,1748683832559,-434.13741432,0.00016438,2]
[363341703,1748683832569,-432.50096307,0.00016438,2]
[363341704,1748683832587,-339.37054799,0.00016438,2]
[363341705,1748683832601,-431.2969658,0.00016438,2]
[363341706,1748683832611,-514.26358156,0.00016438,2]
[363341707,1748683832621,-430.0,0.00016438,2]
[363341708,1748683832631,-430.0,0.00016438,2]
[363341710,1748683832642,-430.0,0.00016438,2]
[363341712,1748683832652,-430.0,0.00016438,2]
[363341714,1748683832662,-430.0,0.00016438,2]
[363341717,1748683832673,-430.0,0.00016438,2]
[363341719,1748683832683,-430.0,0.00016438,2]
[363341721,1748683832693,-430.0,0.00016438,2]
[363341723,1748683832703,-435.10445431,0.00016438,2]
[363341724,1748683832714,-484.77902506,0.00016438,2]
[363341725,1748683832724,-261.35137386,0.00016438,2]
[363341726,1748683832735,-430.0,0.00016438,2]
[363341727,1748683832745,-430.0,0.00016438,2]
[363341728,1748683832755,-434.17738906,0.00016438,2]
[363341729,1748683832764,-430.0,0.00016438,2]
[363341730,1748683832774,-430.0,0.00016438,2]
[363341731,1748683832784,-475.45897167,0.00016438,2]
[363341732,1748683832793,-430.0,0.00016438,2]
[363341733,1748683832803,-430.0,0.00016438,2]
[363341734,1748683832813,-430.0,0.00016438,2]
[363341735,1748683832823,-430.0,0.00016438,2]
[363341736,1748683832834,-430.0,0.00016438,2]
[363341737,1748683832844,-430.0,0.00016438,2]
[363341738,1748683832854,-430.0,0.00016438,2]
[363341739,1748683832864,-401.6869302,0.00016438,2]
[363341740,1748683832874,-430.0,0.00016438,2]
[363341741,1748683832884,-430.0,0.00016438,2]
[363341742,1748683832893,-430.0,0.00016438,2]
[363341743,1748683832903,-430.0,0.00016438,2]
[363341744,1748683832912,-430.0,0.00016438,2]
[363341745,1748683832922,-430.0,0.00016438,2]
[363341746,1748683832931,-430.0,0.00016438,2]
[363341747,1748683832942,-430.0,0.00016438,2]
[363341748,1748683832951,-430.0,0.00016438,2]
[363341749,1748683832962,-430.0,0.00016438,2]
[363341750,1748683832972,-430.0,0.00016438,2]
[363341751,1748683832982,-430.0,0.00016438,2]
[363341752,1748683832992,-412.60460943,0.00016438,2]
[363341753,1748683833002,-397.82929931,0.00016438,2]
[363341754,1748683833013,-430.0,0.00016438,2]
[363341755,1748683833023,-430.0,0.00016438,2]
[363341756,1748683833034,-430.0,0.00016438,2]
[363341757,1748683833044,-280.24167405,0.00016438,2]
[363341758,1748683833054,-430.0,0.00016438,2]
[363341759,1748683833064,-430.0,0.00016438,2]
[363341760,1748683833074,-430.0,0.00016438,2]
[363341761,1748683833085,-433.29841757,0.00016438,2]
[363341762,1748683833099,-430.0,0.00016438,2]
[363341763,1748683833110,-430.0,0.00016438,2]
[363341764,1748683833120,-371.18188898,0.00016438,2]
[363341765,1748683833131,-586.52,0.00016438,2]
[363341766,1748683833141,-430.0,0.00016438,2]
[363341767,1748683833151,-550.0,0.00016438,2]
[363341768,1748683833161,-430.0,0.00016438,2]
[363341769,1748683833171,-722.25,0.00016438,2]
[363341770,1748683833180,-696.99,0.00016438,2]
[363341771,1748683833191,-430.0,0.00016438,2]
[363341772,1748683833204,-430.0,0.00016438,2]
[363341773,1748683833218,-430.0,0.00016438,2]
[363341774,1748683833228,-430.0,0.00016438,2]
[363341775,1748683833238,-430.0,0.00016438,2]
[363341776,1748683833248,-430.0,0.00016438,2]
[363341777,1748683833258,-430.0,0.00016438,2]
[363341778,1748683833268,-430.0,0.00016438,2]
[363341779,1748683833277,-430.0,0.00016438,2]
[363341780,1748683833288,-430.62878932,0.00016438,2]
[363341781,1748683833302,-230.68110136,0.00016438,2]
[363341782,1748683833313,-430.0,0.00016438,2]
[363341783,1748683833323,-430.0,0.00016438,2]
[363341784,1748683833333,-431.43832889,0.00016438,2]
[363341785,1748683833343,-430.0,0.00016438,2]
[363341786,1748683833354,-430.0,0.00016438,2]
[363341787,1748683833364,-430.0,0.00016438,2]
[363341788,1748683833377,-421.6133537,0.00016438,2]
[363341789,1748683833388,-924.0,0.00016438,2]
[363341790,1748683833398,-612.66,0.00016438,2]
[363341791,1748683833409,-430.0,0.00016438,2]
[363341792,1748683833419,-430.0,0.00016438,2]
[363341793,1748683833429,-430.0,0.00016438,2]
[363341794,1748683833439,-430.0,0.00016438,2]
[363341795,1748683833450,-430.0,0.00016438,2]
[363341796,1748683833460,-430.0,0.00016438,2]
[363341797,1748683833469,-430.0,0.00016438,2]
[363341798,1748683833479,-430.0,0.00016438,2]
[363341799,1748683833489,-786.24,0.00016438,2]
[363341800,1748683833499,-430.0,0.00016438,2]
[363341801,1748683833508,-430.0,0.00016438,2]
[363341802,1748683833518,-430.0,0.00016438,2]
[363341803,1748683833528,-193.77833605,0.00016438,2]
[363341804,1748683833544,-236.22166395,0.00016438,2]
[363341805,1748683833553,-430.0,0.00016438,2]
[363341806,1748683833563,-430.0,0.00016438,2]
[363341807,1748683833573,-430.0,0.00016438,2]
[363341808,1748683833583,-440.69313988,0.00016438,2]
[363341809,1748683833593,-430.0,0.00016438,2]
[363341810,1748683833603,-430.0,0.00016438,2]
[363341811,1748683833614,-430.0,0.00016438,2]
[363341812,1748683833623,-430.0,0.00016438,2]
[363341813,1748683833633,-1748.71,0.00016438,2]
[363341814,1748683833643,-430.0,0.00016438,2]
[363341815,1748683833653,-430.0,0.00016438,2]
[363341816,1748683833665,-430.0,0.00016438,2]
[363341817,1748683833675,-430.0,0.00016438,2]
[363341818,1748683833686,-430.0,0.00016438,2]
[363341819,1748683833696,-400.52654759,0.00016438,2]
[363341820,1748683833706,-500.86799031,0.00016438,2]
[363341821,1748683833717,-430.0,0.00016438,2]
[363341822,1748683833727,-430.0,0.00016438,2]
[363341823,1748683833737,-430.0,0.00016438,2]
[363341824,1748683833747,-303.27188526,0.00016438,2]
[363341837,1748683837982,-126.72811474,0.00016438,2]
[363341839,1748683837992,-430.0,0.00016438,2]
[363341840,1748683838001,-430.0,0.00016438,2]
[363341843,1748683838012,-430.0,0.00016438,2]
[363341844,1748683838021,-134.14603148,0.00016438,2]
[363341856,1748683838123,-295.85396852,0.00016438,2]
[363341859,1748683838133,-430.0,0.00016438,2]
[363341862,1748683838143,-430.0,0.00016438,2]
[363341865,1748683838152,-430.0,0.00016438,2]
[363341867,1748683838163,-430.0,0.00016438,2]
[363341869,1748683838173,-430.0,0.00016438,2]
[363341871,1748683838182,-430.0,0.00016438,2]
[363341873,1748683838191,-263.51609182,0.00016438,2]
[363341876,1748683838207,-166.48390818,0.00016438,2]
[363341878,1748683838216,-201.25692703,0.00016438,2]
[363341880,1748683838225,-430.0,0.00016438,2]
[363341882,1748683838234,-466.07,0.00016438,2]
[363341884,1748683838244,-430.0,0.00016438,2]
[363341886,1748683838253,-430.0,0.00016438,2]
[363341888,1748683838262,-430.0,0.00016438,2]
[363341890,1748683838271,-495.34667949,0.00016438,2]
[363341892,1748683838281,-430.0,0.00016438,2]
[363341894,1748683838290,-430.0,0.00016438,2]
[363341896,1748683838304,-430.0,0.00016438,2]
[363341898,1748683838313,-404.39140681,0.00016438,2]
[363341900,1748683838323,-430.0,0.00016438,2]
[363341902,1748683838332,-500.0,0.00016438,2]
[363341904,1748683838343,-167.0,0.00016438,3]
[363341906,1748683838352,-420.0,0.00016654,2]
[363341908,1748683838362,-593.62257662,0.00016711,2]
[363341910,1748683838372,-500.0,0.00016711,2]
[363341912,1748683838381,-207.24729665,0.00016711,2]
[363341914,1748683838391,-500.0,0.00016711,2]
[363341916,1748683838400,-500.0,0.00016711,2]
[363341918,1748683838409,-500.0,0.00016711,2]
[363341920,1748683838419,-500.0,0.00016711,2]
[363341922,1748683838428,-500.0,0.00016711,2]
[363341924,1748683838437,-500.0,0.00016711,2]
[363341926,1748683838446,-430.0,0.00016712,2]
[363341928,1748683838455,-430.0,0.00016712,2]
[363341930,1748683838464,-201.88120522,0.00016712,2]
[363341935,1748683838498,-228.11879478,0.00016712,2]
[363341937,1748683838507,-430.0,0.00016712,2]
[363341939,1748683838516,-430.0,0.00016712,2]
[363341941,1748683838525,-430.0,0.00016712,2]
[363341943,1748683838534,-430.0,0.00016712,2]
[363341945,1748683838545,-430.0,0.00016712,2]
[363341947,1748683838554,-550.0,0.00016712,2]
[363341949,1748683838564,-430.0,0.00016712,2]
[363341951,1748683838573,-722.25,0.00016712,2]
[363341953,1748683838582,-696.99,0.00016712,2]
[363341955,1748683838592,-430.0,0.00016712,2]
[363341957,1748683838601,-430.0,0.00016712,2]
[363341959,1748683838610,-430.0,0.00016712,2]
[363341961,1748683838620,-430.0,0.00016712,2]
[363341963,1748683838629,-495.01,0.00016712,2]
[363341965,1748683838639,-430.0,0.00016712,2]
[363341967,1748683838648,-430.0,0.00016712,2]
[363341969,1748683838657,-924.0,0.00016712,2]
[363341971,1748683838667,-612.66,0.00016712,2]
[363341973,1748683838676,-430.0,0.00016712,2]
[363341975,1748683838685,-430.0,0.00016712,2]
[363341977,1748683838694,-430.0,0.00016712,2]
[363341995,1748683838704,-786.24,0.00016712,2]
[363341997,1748683838864,-430.0,0.00016712,2]
[363341999,1748683838873,-430.0,0.00016712,2]
[363342001,1748683838883,-430.0,0.00016712,2]
[363342003,1748683838892,-430.0,0.00016712,2]
[363342005,1748683838902,-430.0,0.00016712,2]
[363342007,1748683838911,-430.0,0.00016712,2]
[363342009,1748683838922,-430.0,0.00016712,2]
[363342011,1748683838931,-1748.71,0.00016712,2]
[363342013,1748683838940,-430.0,0.00016712,2]
[363342015,1748683838949,-430.0,0.00016712,2]
[363342017,1748683838958,-299.27,0.00016712,2]
[363342019,1748683838968,-430.0,0.00016712,2]
[363342021,1748683838977,-430.0,0.00016712,2]
[363342023,1748683838987,-430.0,0.00016712,2]
[363342025,1748683838996,-430.0,0.00016712,2]
[363342027,1748683839005,-430.0,0.00016712,2]
[363342028,1748683839015,-430.0,0.00016712,2]
[363342029,1748683839024,-430.0,0.00016712,2]
[363342030,1748683839033,-430.0,0.00016712,2]
[363342031,1748683839044,-430.0,0.00016712,2]
[363342032,1748683839053,-430.0,0.00016712,2]
[363342033,1748683839063,-430.0,0.00016712,2]
[363342034,1748683839074,-430.0,0.00016712,2]
[363342035,1748683839083,-466.07,0.00016712,2]
[363342036,1748683839093,-218.57,0.00016712,2]
[363342037,1748683839104,-469.41365796,0.00016712,2]
[363342038,1748683839114,-430.0,0.00016712,2]
[363342039,1748683839124,-430.0,0.00016712,2]
[363342040,1748683839133,-2481.35007997,0.000169,2]
[363342041,1748683839144,-430.0,0.00016986,2]
[363342042,1748683839153,-430.0,0.00016986,2]
[363342043,1748683839162,-430.0,0.00016986,2]
[363342044,1748683839172,-430.0,0.00016986,2]
[363342045,1748683839181,-430.0,0.00016986,2]
[363342046,1748683839191,-430.0,0.00016986,2]
[363342047,1748683839200,-430.0,0.00016986,2]
[363342048,1748683839210,-550.0,0.00016986,2]
[363342049,1748683839219,-722.25,0.00016986,2]
[363342050,1748683839229,-696.99,0.00016986,2]
[363342051,1748683839238,-430.0,0.00016986,2]
[363342052,1748683839247,-430.0,0.00016986,2]
[363342053,1748683839256,-430.0,0.00016986,2]
[363342054,1748683839266,-430.0,0.00016986,2]
[363342055,1748683839275,-430.0,0.00016986,2]
[363342056,1748683839285,-430.0,0.00016986,2]
[363342057,1748683839297,-924.0,0.00016986,2]
[363342058,1748683839306,-612.66,0.00016986,2]
[363342059,1748683839316,-430.0,0.00016986,2]
[363342060,1748683839325,-430.0,0.00016986,2]
[363342061,1748683839335,-786.24,0.00016986,2]
[363342062,1748683839345,-430.0,0.00016986,2]
[363342063,1748683839354,-430.0,0.00016986,2]
[363342064,1748683839364,-430.0,0.00016986,2]
[363342065,1748683839375,-430.0,0.00016986,2]
[363342066,1748683839385,-430.0,0.00016986,2]
[363342067,1748683839394,-430.0,0.00016986,2]
[363342068,1748683839404,-430.0,0.00016986,2]
[363342069,1748683839413,-1748.71,0.00016986,2]
[363342070,1748683839422,-430.0,0.00016986,2]
[363342071,1748683839431,-430.0,0.00016986,2]
[363342072,1748683839444,-430.0,0.00016986,2]
[363342073,1748683839455,-430.0,0.00016986,2]
[363342074,1748683839465,-430.0,0.00016986,2]
[363342075,1748683839474,-430.0,0.00016986,2]
[363342076,1748683839484,-430.0,0.00016986,2]
[363342077,1748683839493,-430.0,0.00016986,2]
[363342078,1748683839502,-478.87924152,0.00016986,2]
[363342079,1748683839511,-430.0,0.00016986,2]
[363342080,1748683839521,-430.0,0.00016986,2]
[363342081,1748683839531,-466.07,0.00016986,2]
[363342082,1748683839540,-430.0,0.00016986,2]
[363342083,1748683839550,-430.0,0.00016986,2]
[363342084,1748683839559,-12797.1784467,0.00017,2]
[363342085,1748683839568,-241.03634941,0.00017122,2]
[363342086,1748683839578,-2481.35007997,0.00017176,2]
[363342087,1748683839587,-430.0,0.0001726,2]
[363342088,1748683839596,-430.0,0.0001726,2]
[363342089,1748683839606,-430.0,0.0001726,2]
[363342090,1748683839616,-430.0,0.0001726,2]
[363342091,1748683839626,-430.0,0.0001726,2]
[363342092,1748683839635,-430.0,0.0001726,2]
[363342094,1748683839644,-550.0,0.0001726,2]
[363342095,1748683839654,-722.25,0.0001726,2]
[363342097,1748683839663,-696.99,0.0001726,2]
[363342098,1748683839673,-430.0,0.0001726,2]
[363342099,1748683839682,-408.19885291,0.0001726,2]
[363342100,1748683839692,-430.0,0.0001726,2]
[363342101,1748683839701,-430.0,0.0001726,2]
[363342102,1748683839711,-255.9063081,0.0001726,2]
[363342103,1748683839720,-924.0,0.0001726,2]
[363342104,1748683839729,-612.66,0.0001726,2]
[363342105,1748683839738,-430.0,0.0001726,2]
[363342106,1748683839748,-430.0,0.0001726,2]
[363342107,1748683839757,-786.24,0.0001726,2]
[363342108,1748683839766,-430.0,0.0001726,2]
[363342109,1748683839776,-430.0,0.0001726,2]
[363342110,1748683839787,-430.0,0.0001726,2]
[363342111,1748683839797,-430.0,0.0001726,2]
[363342112,1748683839806,-430.0,0.0001726,2]
[363342113,1748683839816,-1748.71,0.0001726,2]
[363342114,1748683839825,-430.0,0.0001726,2]
[363342115,1748683839835,-430.0,0.0001726,2]
[363342116,1748683839844,-430.0,0.0001726,2]
[363342117,1748683839853,-430.0,0.0001726,2]
[363342118,1748683839862,-430.0,0.0001726,2]
[363342119,1748683839872,-430.0,0.0001726,2]
[363342120,1748683839881,-430.0,0.0001726,2]
[363342121,1748683839890,-430.0,0.0001726,2]
[363342122,1748683839900,-466.07,0.0001726,2]
[363342123,1748683839909,-430.0,0.0001726,2]
[363342124,1748683839918,-430.0,0.0001726,2]
[363342125,1748683839927,-2481.35007997,0.00017452,2]
[363342126,1748683839936,-151.95110743,0.00017459,2]
[363342127,1748683839946,-430.0,0.00017534,2]
[363342128,1748683839955,-430.0,0.00017534,2]
[363342129,1748683839964,-430.0,0.00017534,2]
[363342130,1748683839974,-430.0,0.00017534,2]
[363342131,1748683839983,-430.0,0.00017534,2]
[363342132,1748683839993,-430.0,0.00017534,2]
[363342133,1748683840003,-550.0,0.00017534,2]
[363342134,1748683840012,-722.25,0.00017534,2]
[363342135,1748683840022,-696.99,0.00017534,2]
[363342136,1748683840031,-430.0,0.00017534,2]
[363342137,1748683840042,-430.0,0.00017534,2]
[363342138,1748683840051,-430.0,0.00017534,2]
[363342139,1748683840061,-924.0,0.00017534,2]
[363342140,1748683840070,-612.66,0.00017534,2]
[363342141,1748683840079,-430.0,0.00017534,2]
[363342142,1748683840090,-786.24,0.00017534,2]
[363342143,1748683840101,-430.0,0.00017534,2]
[363342144,1748683840110,-430.0,0.00017534,2]
[363342145,1748683840120,-430.0,0.00017534,2]
[363342146,1748683840129,-430.0,0.00017534,2]
[363342147,1748683840138,-1748.71,0.00017534,2]
[363342148,1748683840148,-366.8424821,0.00017534,2]
[363342149,1748683840157,-430.0,0.00017534,2]
[363342150,1748683840167,-430.0,0.00017534,2]
[363342151,1748683840176,-430.0,0.00017534,2]
[363342152,1748683840186,-430.0,0.00017534,2]
[363342153,1748683840196,-430.0,0.00017534,2]
[363342154,1748683840206,-430.0,0.00017534,2]
[363342155,1748683840216,-466.07,0.00017534,2]
[363342156,1748683840225,-430.0,0.00017534,2]
[363342157,1748683840235,-206.17626019,0.000176,2]
[363342158,1748683840246,-500.0,0.00017719,2]
[363342159,1748683840256,-438.97817513,0.00017719,2]
[363342160,1748683840265,-505.52707264,0.00017719,2]
[363342162,1748683840274,-2481.35007997,0.00017728,2]
[363342163,1748683840283,-430.0,0.00017808,2]
[363342164,1748683840296,-430.0,0.00017808,2]
[363342165,1748683840306,-430.0,0.00017808,2]
[363342166,1748683840315,-430.0,0.00017808,2]
[363342167,1748683840324,-430.0,0.00017808,2]
[363342168,1748683840335,-430.0,0.00017808,2]
[363342169,1748683840344,-550.0,0.00017808,2]
[363342170,1748683840354,-722.25,0.00017808,2]
[363342171,1748683840363,-696.99,0.00017808,2]
[363342172,1748683840375,-430.0,0.00017808,2]
[363342174,1748683840385,-248.4,0.00017808,2]
[363342175,1748683840394,-430.0,0.00017808,2]
[363342176,1748683840403,-924.0,0.00017808,2]
[363342177,1748683840413,-612.66,0.00017808,2]
[363342178,1748683840422,-430.0,0.00017808,2]
[363342179,1748683840431,-786.24,0.00017808,2]
[363342180,1748683840441,-430.0,0.00017808,2]
[363342181,1748683840450,-430.0,0.00017808,2]
[363342182,1748683840461,-430.0,0.00017808,2]
[363342183,1748683840470,-430.0,0.00017808,2]
[363342184,1748683840479,-1748.71,0.00017808,2]
[363342185,1748683840489,-430.0,0.00017808,2]
[363342186,1748683840500,-430.0,0.00017808,2]
[363342187,1748683840510,-430.0,0.00017808,2]
[363342188,1748683840520,-430.0,0.00017808,2]
[363342189,1748683840531,-430.0,0.00017808,2]
[363342190,1748683840541,-466.07,0.00017808,2]
[363342191,1748683840551,-430.0,0.00017808,2]
[363342192,1748683840560,-512.50324973,0.00017904,2]
[363342193,1748683840570,-2481.35007997,0.00018003,2]
[363342194,1748683840580,-430.0,0.00018082,2]
[363342195,1748683840589,-430.0,0.00018082,2]
[363342196,1748683840598,-430.0,0.00018082,2]
[363342197,1748683840607,-430.0,0.00018082,2]
[363342198,1748683840617,-430.0,0.00018082,2]
[363342199,1748683840626,-430.0,0.00018082,2]
[363342200,1748683840636,-550.0,0.00018082,2]
[363342201,1748683840645,-722.25,0.00018082,2]
[363342202,1748683840655,-696.99,0.00018082,2]
[363342203,1748683840664,-430.0,0.00018082,2]
[363342204,1748683840673,-430.0,0.00018082,2]
[363342205,1748683840683,-924.0,0.00018082,2]
[363342206,1748683840692,-612.66,0.00018082,2]
[363342207,1748683840701,-430.0,0.00018082,2]
[363342208,1748683840711,-786.24,0.00018082,2]
[363342209,1748683840720,-430.0,0.00018082,2]
[363342210,1748683840730,-430.0,0.00018082,2]
[363342211,1748683840739,-430.0,0.00018082,2]
[363342212,1748683840748,-430.0,0.00018082,2]
[363342213,1748683840758,-1748.71,0.00018082,2]
[363342214,1748683840767,-430.0,0.00018082,2]
[363342215,1748683840776,-430.0,0.00018082,2]
[363342216,1748683840785,-430.0,0.00018082,2]
[363342217,1748683840795,-430.0,0.00018082,2]
[363342218,1748683840804,-430.0,0.00018082,2]
[363342219,1748683840814,-466.07,0.00018082,2]
[363342220,1748683840823,-430.0,0.00018082,2]
[363342221,1748683840833,-2443.929871,0.00018082,2]
[363342222,1748683840842,-800.0,0.00018164,2]
[363342223,1748683840851,-587.0,0.00018223,2]
[363342224,1748683840861,-1000.0,0.00018267,2]
[363342225,1748683840870,-2481.35007997,0.00018279,2]
[363342226,1748683840879,-430.0,0.00018356,2]
[363342227,1748683840888,-430.0,0.00018356,2]
[363342228,1748683840897,-430.0,0.00018356,2]
[363342229,1748683840906,-522.76,0.00018356,2]
[363342230,1748683840915,-430.0,0.00018356,2]
[363342231,1748683840925,-550.0,0.00018356,2]
[363342232,1748683840934,-722.25,0.00018356,2]
[363342233,1748683840943,-696.99,0.00018356,2]
[363342234,1748683840952,-430.0,0.00018356,2]
[363342235,1748683840961,-430.0,0.00018356,2]
[363342236,1748683840970,-924.0,0.00018356,2]
[363342237,1748683840980,-612.66,0.00018356,2]
[363342238,1748683840989,-430.0,0.00018356,2]
[363342239,1748683840998,-786.24,0.00018356,2]
[363342240,1748683841007,-430.0,0.00018356,2]
[363342241,1748683841017,-430.0,0.00018356,2]
[363342242,1748683841027,-430.0,0.00018356,2]
[363342243,1748683841036,-430.0,0.00018356,2]
[363342244,1748683841045,-1748.71,0.00018356,2]
[363342245,1748683841055,-430.0,0.00018356,2]
[363342246,1748683841065,-430.0,0.00018356,2]
[363342247,1748683841076,-430.0,0.00018356,2]
[363342248,1748683841086,-430.0,0.00018356,2]
[363342249,1748683841096,-430.0,0.00018356,2]
[363342250,1748683841105,-466.07,0.00018356,2]
[363342251,1748683841115,-430.0,0.00018356,2]
[363342252,1748683841125,-154409.56949812,0.00018399,2]
[363342253,1748683841134,-842.5625,0.00018407,2]
[363342254,1748683841144,-229.3428821,0.00018407,2]
[363342255,1748683841155,-160.0,0.00018407,2]
[363342256,1748683841165,-160.0,0.00018407,2]
[363342257,1748683841175,-212.77096907,0.00018407,2]
[363342258,1748683841184,-160.0,0.00018407,2]
[363342259,1748683841194,-423.4608169,0.00018407,2]
[363342260,1748683841205,-160.0,0.00018407,2]
[363342261,1748683841215,-12664.98044988,0.00018407,2]
[363342262,1748683841225,-2481.35007997,0.00018555,2]
[363342263,1748683841233,-151.95110743,0.00018581,2]
[363342264,1748683841242,-430.0,0.0001863,2]
[363342265,1748683841251,-430.0,0.0001863,2]
[363342266,1748683841260,-174.28,0.0001863,2]
[363342267,1748683841270,-550.0,0.0001863,2]
[363342268,1748683841280,-722.25,0.0001863,2]
[363342269,1748683841289,-696.99,0.0001863,2]
[363342270,1748683841303,-430.0,0.0001863,2]
[363342271,1748683841312,-430.0,0.0001863,2]
[363342272,1748683841321,-924.0,0.0001863,2]
[363342273,1748683841330,-612.66,0.0001863,2]
[363342274,1748683841341,-430.0,0.0001863,2]
[363342275,1748683841350,-786.24,0.0001863,2]
[363342276,1748683841359,-430.0,0.0001863,2]
[363342277,1748683841368,-430.0,0.0001863,2]
[363342278,1748683841379,-418.42882063,0.0001863,2]
[363342279,1748683841389,-430.0,0.0001863,2]
[363342280,1748683841399,-1748.71,0.0001863,2]
[363342281,1748683841408,-430.0,0.0001863,2]
[363342282,1748683841417,-430.0,0.0001863,2]
[363342283,1748683841426,-430.0,0.0001863,2]
[363342284,1748683841435,-430.0,0.0001863,2]